Cogmind - Beta 16 @@@ ROGUE MODE // 2025.10.23 @ 22:09:32 Player: GiggleBox Result: Destroyed by S-10 Pest with Light Assault Rifle Performance ------------- Evolutions (0) 0 Regions Visited (3) 600 Robots Destroyed (26) 130 Value Destroyed (405) 405 Prototype IDs (2) 40 Alien Tech Used (0) 0 Bonus (0) 0 TOTAL SCORE: 1175 Bonus ------- None Cogmind --------- Core Integrity 0/250 Matter 300/300 Energy 100/100 System Corruption 1% Temperature Cool (0) Movement Core (50) Location -10/Subcaves Parts ------- > --- POWER (1) -------- (None) > --- PROPULSION (2) --- (None) > --- UTILITY (2) ------ Improved Heat Sink > --- WEAPON (2) ------- (None) > --- INVENTORY (5) ---- Aluminum Leg Aluminum Leg Medium Storage Unit High-capacity Matter Pod (200) Mining Laser Peak State ------------ > --- POWER ------------ Ion Engine > --- PROPULSION ------- Aluminum Leg Aluminum Leg > --- UTILITY ---------- Improved Heat Sink Large Storage Unit > --- WEAPON ----------- Medium Laser Particle Gun > --- INVENTORY -------- Ion Engine Light Treads Light Treads Aluminum Leg Heat Sink Heat Sink Medium Storage Unit High-capacity Matter Pod Seismic Detector Small Laser [Rating: 11] Favorites ----------- Power Ion Engine Engine Ion Engine Propulsion Aluminum Leg Leg Aluminum Leg Utility Large Storage Unit Device Improved Heat Sink Storage Large Storage Unit Weapon Medium Laser Energy Gun Medium Laser Special Weapon Mining Laser Build | -11 -10 -10 -10 ------- Run | Yrd Mat Min Sub Slots Evolved . | . . . . Power . | . . . . Propulsion . | . . . . Utility . | . . . . Weapon . | . . . . Parts Attached 15 | 8 7 . . Power 1 | 1 . . . Engine 1 | 1 . . . Core . | . . . . Reactor . | . . . . Propulsion 2 | 2 . . . Treads . | . . . . Leg 2 | 2 . . . Wheel . | . . . . Hover . | . . . . Flight . | . . . . Utility 7 | 2 5 . . Device 4 | 1 3 . . Storage 3 | 1 2 . . Processor . | . . . . Hackware . | . . . . Protection . | . . . . Artifact . | . . . . Weapon 5 | 3 2 . . Energy Gun 4 | 3 1 . . Energy Cannon . | . . . . Ballistic Gun . | . . . . Ballistic Cannon . | . . . . Launcher . | . . . . Special Weapon 1 | . 1 . . Impact Weapon . | . . . . Slashing Weapon . | . . . . Piercing Weapon . | . . . . Special Melee Weapon . | . . . . Unidentified Prototypes . | . . . . Parts Lost 6 | . 1 . 5 Power 1 | . . . 1 Propulsion 2 | . . . 2 Utility . | . . . . Weapon 3 | . 1 . 2 Highest Loss Streak 3 | . 1 . 3 To Critical Strikes 1 | . . . 1 Average Backups 9 | 3 9 15 12 Power . | . 1 1 . Propulsion 3 | 1 2 6 4 Utility 3 | . 4 6 4 Weapon 1 | . 1 2 1 Tool/Special . | . . . . Unused Backups 11 | . 1 . 10 Power 2 | . 1 . 1 Propulsion 6 | . . . 6 Utility 3 | . . . 3 Weapon . | . . . . Tool/Special . | . . . . Average Slot Usage (%) 96 | . 99 100 59 Engine 13 | . 14 14 5 Leg 26 | . 27 28 18 Device 14 | . 14 14 14 Storage 13 | . 14 14 10 Energy Gun 25 | . 26 25 10 Special Weapon 1 | . 1 2 . Peak Build Rating 11 | 7 11 11 11 Average Rating 9 | 5 9 9 7 On Entrance 7 | . 7 11 11 Avg Prop Armor Cover (%) . | . . . . Naked Turns . | . . . . Heaviest Build 31 | 15 31 31 31 Greatest Support 20 | 20 20 20 20 Greatest Overweight (x) 2 | 1 1 1 2 Average Overweight (x) . | . . 1 . Largest Inventory Capacity 15 | 8 15 15 15 Average Capacity 12 | 7 12 15 12 Most Carried 15 | 4 15 15 15 Average Carried 9 | 3 9 15 12 Final Capacity 15 | 8 15 15 5 Final Carried 15 | 4 15 15 5 Class Distribution -------------------- 100% | Mutant Dominant Class ---------------- Mutant | -10/Materials Mutant | -10/Mines Mutant | -10/Subcaves Resources | -11 -10 -10 -10 ----------- Run | Yrd Mat Min Sub Matter Collected 687 | 280 322 70 15 Remotely . | . . . . Salvage Created 824 | 196 520 108 . Parts 43 | 13 24 6 . Haulers Intercepted 2 | . 2 . . Recyclers Shooed . | . . . . Parts Field Recycled . | . . . . Retrieved Matter . | . . . . Parts Self-Destructed 6 | . . . 6 Prevented . | . . . . Parts Restored . | . . . . Kills | -11 -10 -10 -10 ------- Run | Yrd Mat Min Sub Combat Hostiles Destroyed 13 | . 10 3 . Guns 13 | . 10 3 . Classes Destroyed 8 | 3 5 . . Worker 2 | 1 1 . . Tunneler 4 | 4 . . . Hauler 2 | . 2 . . Recycler 2 | 1 1 . . Operator 1 | . 1 . . Watcher 2 | . 2 . . Swarmer 6 | . 6 . . Grunt 7 | . 4 3 . Best Kill Streak 4 | 3 4 3 . Combat Bots Only 3 | . 3 3 . Max Kills in Single Turn 2 | 1 2 1 . Gunslinging 1 | . 1 . . Exploded . | . . . . Melee . | . . . . Uniques/NPCs Destroyed . | . . . . Combat | -11 -10 -10 -10 -------- Run | Yrd Mat Min Sub Hostile Shots Fired 122 | . 50 5 67 Missed 39 | . 9 2 28 Hits 83 | . 41 3 39 Projectile 83 | . 41 3 39 Critical Strikes 3 | . 1 . 2 Damage Taken 973 | . 426 32 515 Core 252 | . 38 . 214 Absorbed by Shields . | . . . . Regen/Repaired (Parts) 135 | . 135 . . Core Remaining (%) 100 | 100 . . . Volleys Fired 65 | 12 47 4 2 Largest 2 | 2 2 2 2 Hottest 115 | 100 115 115 115 Shots Fired 129 | 24 94 7 4 Gun 127 | 24 92 7 4 Cannon . | . . . . Launcher . | . . . . Special 2 | . 2 . . Kinetic . | . . . . Thermal 129 | 24 94 7 4 Explosive . | . . . . Electromagnetic . | . . . . Robot Hit Streak 8 | 4 8 3 1 Robot Miss Streak 5 | 3 5 1 1 Penetration Max . | . . . . Secondary Targets 3 | . 3 . . Max Gunslinging Chain 1 | . 1 . . Shots Hit Robots 74 | 11 55 6 2 Core Hits 33 | 7 22 3 1 Critical Kills . | . . . . Critical Parts Destroyed . | . . . . Critical Strikes 11 | 1 9 1 . Burn 11 | 1 9 1 . Melee Attacks . | . . . . Impact . | . . . . Slashing . | . . . . Piercing . | . . . . Sneak Attacks . | . . . . Combat Hostiles . | . . . . Follow-up Attacks . | . . . . Damage Inflicted 1012 | 139 756 87 30 Guns 1008 | 139 754 87 28 Cannons . | . . . . Explosions . | . . . . Melee . | . . . . Ramming 4 | . 2 . 2 Kinetic . | . . . . Thermal 1008 | 139 754 87 28 Explosive . | . . . . Electromagnetic . | . . . . Impact . | . . . . Slashing . | . . . . Piercing . | . . . . Highest Corruption 1 | . 1 1 1 Average Corruption 1 | . 1 1 1 Corruption Purged . | . . . . Corruption Blocked . | . . . . Effects 14 | . 10 3 1 Message Errors 3 | . 2 1 . Matter Fused 5 | . 3 2 . Heat Flow Errors 1 | . 1 . . Energy Discharges 1 | . . . 1 Data Loss (major) 1 | . 1 . . Misfires 2 | . 2 . . Alerts 1 | . 1 . . Overload Shots . | . . . . Overflow Damage . | . . . . Projectiles . | . . . . Explosions . | . . . . Melee . | . . . . Knockbacks . | . . . . Impact . | . . . . Kinetic . | . . . . Secondary . | . . . . Self-Inflicted Damage . | . . . . Shots . | . . . . Rammed . | . . . . Targets Rammed 2 | . 1 . 1 Kicked 2 | . 1 . 1 Crushed . | . . . . Highest Temperature 195 | 195 117 18 . Average Temperature 38 | 66 29 9 . Received Heat Transfer 252 | . 144 18 90 Siege Activations . | . . . . Martial Activations . | . . . . Shielding Activations . | . . . . Robots Disrupted . | . . . . Combat Hostiles . | . . . . Robots Corrupted . | . . . . Combat Hostiles . | . . . . Parts Fried . | . . . . Impact Corruptions . | . . . . Robots Melted 2 | . 2 . . Combat Hostiles . | . . . . Parts Melted 11 | . 10 1 . Heat Transferred 3617 | 481 2766 296 74 Parts Sabotaged . | . . . . Parts Stolen . | . . . . Parts Stripped . | . . . . Power Chain Reactions . | . . . . Alert | -11 -10 -10 -10 ------- Run | Yrd Mat Min Sub Maximum Alert Level . | . . . . Low Security (%) 100 | 100 100 100 . Level 1 . | . . . . Level 2 . | . . . . Level 3 . | . . . . Level 4 . | . . . . Level 5 . | . . . . High Security . | . . . . Max Security . | . . . . Peak Influence 117 | 10 117 50 . Initial . | . . . . Average 21 | 1 27 8 . Influence Increases 504 | 30 339 60 75 Destroy 0b10 Robot/C 260 | . 200 60 . Destroy 0b10 Robot/NC 65 | 30 35 . . Destroy Leader 48 | . 48 . . Successful Hack 24 | . 24 . . Destroy Structure 2 | . 2 . . Partial Spotted 15 | . 15 . . Lose Combat Pursuer 90 | . 15 . 75 Influence Decreases 459 | 30 339 50 40 Entered New Map 6 | . . . 6 Time Decay 429 | 30 325 50 24 Lost Part 20 | . 10 . 10 Purge Threat 4 | . 4 . . Squads Dispatched 1 | . 1 . . Investigation . | . . . . Extermination . | . . . . Reinforcement 1 | . 1 . . Assault . | . . . . Garrison . | . . . . Intercept . | . . . . Searches Triggered . | . . . . Construction Impeded . | . . . . Haulers Reinforced . | . . . . Active Scanning Responses . | . . . . Cargo Convoy Interrupts . | . . . . Stealth | -11 -10 -10 -10 --------- Run | Yrd Mat Min Sub Distress Signals 1 | . 1 . . Communications Jammed . | . . . . Distress Signals . | . . . . Times Spotted 29 | . 17 3 9 Peak Tracking Total 8 | . 3 1 8 Tactical Retreats 3 | . 1 . 2 Traps | -11 -10 -10 -10 ------- Run | Yrd Mat Min Sub Traps Triggered 1 | . 1 . . Indirectly . | . . . . Trap Hack Attempts . | . . . . Triggered . | . . . . Disarmed . | . . . . Reprogrammed . | . . . . Reused . | . . . . Traps Extracted . | . . . . Installed . | . . . . Triggered . | . . . . Machines | -11 -10 -10 -10 ---------- Run | Yrd Mat Min Sub Machines Disabled . | . . . . Max in Single Turn . | . . . . Machines Repaired . | . . . . Machines Dismantled . | . . . . Machines Sabotaged . | . . . . Overloaded Fab Kills . | . . . . Hacking | -11 -10 -10 -10 --------- Run | Yrd Mat Min Sub Machines Accessed 8 | . 8 . . Terminals 7 | . 7 . . Fabricators . | . . . . Repair Stations 1 | . 1 . . Recycling Units . | . . . . Scanalyzers . | . . . . Garrison Access . | . . . . Total Hacks 27 | . 27 . . Successful 15 | . 15 . . Failed 12 | . 12 . . Catastrophic 1 | . 1 . . Database Lockouts . | . . . . Manual 16 | . 16 . . Terminals 22 | . 22 . . Fabricators . | . . . . Repair Stations 5 | . 5 . . Recycling Units . | . . . . Scanalyzers . | . . . . Garrison Access . | . . . . Terminal Hacks 3 | . 3 . . Prototype ID Bank 1 | . 1 . . Unreport Threat 1 | . 1 . . Locate Traps 1 | . 1 . . Fabricator Hacks . | . . . . Repair Station Hacks 4 | . 4 . . Scan Component 2 | . 2 . . Repair 2 | . 2 . . Recycling Unit Hacks . | . . . . Scanalyzer . | . . . . Garrison Access Hacks . | . . . . Unauthorized Hacks 8 | . 8 . . Terminals 8 | . 8 . . Botnet 2 | . 2 . . Operators 1 | . 1 . . Skim 5 | . 5 . . Fabricators . | . . . . Repair Stations . | . . . . Recycling Units . | . . . . Scanalyzers . | . . . . Garrison Access . | . . . . Data Cores Recovered . | . . . . Used . | . . . . Hacking Detections 8 | . 8 . . Full Trace Events . | . . . . Feedback Events . | . . . . Feedback Blocked . | . . . . Robot Schematics Acquired . | . . . . Robots Built . | . . . . Authchips . | . . . . Time . | . . . . Total Robot Build Rating . | . . . . Part Schematics Acquired . | . . . . Parts Built . | . . . . Authchips . | . . . . Time . | . . . . Total Part Build Rating . | . . . . Part Studies Acquired . | . . . . Parts Repaired 2 | . 2 . . Time 52 | . 52 . . Parts Recycled . | . . . . Recycled Matter . | . . . . Retrieved Matter . | . . . . Retrieved Components . | . . . . Parts Scanalyzed . | . . . . Part Schematics Acquired . | . . . . Parts Damaged . | . . . . Bothacking | -11 -10 -10 -10 ------------ Run | Yrd Mat Min Sub Used RIF Installer . | . . . . Robots Hacked . | . . . . Non-combat . | . . . . Combat . | . . . . Robot Hacks Applied . | . . . . Relay Couplers Released . | . . . . Fabnet Peak Effective % . | . . . . Robots Rewired . | . . . . Allies Hacked . | . . . . Hacks Repelled . | . . . . Allies | -11 -10 -10 -10 -------- Run | Yrd Mat Min Sub Total Allies . | . . . . Largest Group . | . . . . Highest-Rated Group . | . . . . Highest-Rated Ally . | . . . . Total Orders . | . . . . Ally Attacks . | . . . . Total Damage . | . . . . Kills . | . . . . Allies Corrupted . | . . . . Allies Melted . | . . . . Intel | -11 -10 -10 -10 ------- Run | Yrd Mat Min Sub Active Infowar (turns) 412 | 34 208 170 . Seismic 412 | 34 208 170 . Robot Analysis Total . | . . . . Derelict Logs Recovered . | . . . . Drone Launches . | . . . . Drone Recoveries . | . . . . Exploration | -11 -10 -10 -10 ------------- Run | Yrd Mat Min Sub Turns Passed 2102 | 254 1374 337 137 Spaces Moved 1123 | 163 678 166 116 Core 74 | 4 . . 70 Treads . | . . . . Legs 1049 | 159 678 166 46 Wheels . | . . . . Hover . | . . . . Flight . | . . . . Fastest Speed 50 | 50 120 190 50 Average Speed 156 | 120 165 190 109 Slowest Speed 260 | 190 190 190 260 Overloaded Moves . | . . . . Propulsion Burnouts . | . . . . Robots Hopped . | . . . . Potential Cave-ins . | . . . . Cave-ins Triggered . | . . . . Exploration Rate (%) 37 | 7 97 29 17 Regions Visited 3 Branch Regions 2 Pre-discovered Areas 1 | . 1 . . Known Exits Taken . | . . . . Unknown Exits Taken 3 | 1 1 1 . Scrap Searched . | . . . . Spaces Dug 2 | . 2 . . Terrain Destroyed 2 | . 2 . . Melee . | . . . . Projectile 2 | . 2 . . AOE . | . . . . Terrain Rammed . | . . . . Walls Destroyed . | . . . . Machines Disabled . | . . . . Actions | -11 -10 -10 -10 --------- Run | Yrd Mat Min Sub Total 1319 | 192 827 180 120 Wait 86 | 6 72 8 . Move 1120 | 162 677 165 116 Hop . | . . . . Pick Up 14 | 4 10 . . Fast Attach 9 | 7 2 . . Attach 1 | . 1 . . Detach . | . . . . Swap 18 | 1 14 3 . Drop 4 | . 3 . 1 Fire 65 | 12 47 4 2 Melee . | . . . . Ram . | . . . . Kick 2 | . 1 . 1 Crush . | . . . . Escape Stasis . | . . . . Rewire . | . . . . Trap . | . . . . Miscellaneous . | . . . . Route ------- -11/Scrapyard -10/Materials (discovered 4 exits: [*Mat x3] / [*Min]) -10/Mines -10/Subcaves (discovered 1 exit: [*Rec]) History --------- Turn | Location | Event 26 | -11/Scrapyard | Discovered new exit (range 15) 255 | -11/Scrapyard | Entered Materials 313 | -10/Materials | Build established: Mutant 440 | -10/Materials | Discovered new exit (range 3) 627 | -10/Materials | Discovered new exit (range 10) 748 | -10/Materials | Discovered new exit (range 11) 975 | -10/Materials | Repaired Aluminum Leg 1002 | -10/Materials | Repaired Aluminum Leg 1133 | -10/Materials | Discovered new exit (range 16) 1629 | -10/Materials | Entered Mines 1741 | -10/Mines | Excavation squad dispatched 1741 | -10/Mines | A large section of the Mines collapsed 1940 | -10/Mines | Discovered new exit (range 9) 1966 | -10/Mines | Entered Subcaves 1967 | -10/Subcaves | Approached by a straggling Scientist 2043 | -10/Subcaves | Lost 3 parts (1p2w) 2060 | -10/Subcaves | Discovered new exit (range 12) 2065 | -10/Subcaves | Core integrity fell below 50% 2075 | -10/Subcaves | Core integrity fell below 20% 2103 | -10/Subcaves | Destroyed by S-10 Pest with Light Assault Rifle Last Messages --------------- nasty situation. At least I think I can... The group I got separated from was talking about a shortcut back to the UFD." 02008_ Med. Laser destroyed. 02010_ Particle Gun destroyed. 02012_ Critical hit (Destroy). 02012_ Ion Engine destroyed. 02029_ Acquired 15 matter. 02045_ Aluminum Leg destroyed. 02052_ Kicked S-10 Pest out of the way. 02053_ Subatomizers dissect the Tech Extrapolator. 02056_ System corrupted: Energy discharge (-25). 02060_ EXIT=FOUND 02063_ Tech Extrapolator violently self-destructs. 02067_ Subatomizers dissect the Wheel. 02067_ Aluminum Leg destroyed. 02067_ Dropped Lrg. Storage Unit. 02068_ EM-NA1(R) suffers critical hit (Destroy). 02070_ EM-NA1(R) destroyed. 02072_ S-10 Pest destroyed. 02075_ 8N-3MU(R) destroyed. Map ----- +----------------------------------------------------+ | ?????????????????????????????????????????????????? | | ?????????????????????????????????????????????????? | | ?????????????????????????????????????????????????? | | ?????????????????????????????????????????????????? | | ?????????????????????????????????????????????????? | | ?????????????????????????????????????????????????? | | ?????????????????????????????????????????????????? | | ?????????????????????????????????????????????????? | | ?????????????????????????????????????????????????? | | ?????????????????????????????????????????????????? | | ?????????????????????????????????????????????????? | | ?????????????????????????????????????????????????? | | ?????????????????????????????????????????????????? | | ?????????????????????????????????????????????????? | | ?????????????????????????????????????????????????? | | ?????????????????????????????????????????????????? | | ?????????????????????????????????????????????????? | | ?????????????###??###????????????????????????????? | | ????????????## ### ####?????????????????????????? | | ????????????# ## ####??????????????????????? | | ????????????# ## ###????????????????????? | | ????????????# ##???????????????????? | | ????????????# #???????????????????? | | ????????????#### s #?????????? ????????? | | ???????????????## s ##???###?? ???????? | | ????????????????## @s ##?? ## ???????? | | ?????????????????# ### #? ??????? | | ??????????????# #?## ## ?????? | | ?????????????# ## #?## ## ?????? | | ?????????????## ## #?# #?????? | | ??????????????## ## ##?## #?????????? | | ???????????????## #???# #?????????? | | ????????????????# #?## ###?????????? | | ????????????????## ## #???????????? | | ?????????????????## ### ### #???????????? | | ??????????????????###??## ##??# #???????????? | | ???????????????????###### #????###???????????? | | ???????????????????# ## #??????????????????? | | ???????????????????# #??????????????????? | | ???????????????????# ## #?????????????????? | | ????????????????#### #### #?????????????????? | | ????????????????# ##?? #??????????????##?? | | ????????????????## ######## #####????????##<### | | ????????????????# ## ##?? ## #####???"" """ | | ????????????????# ### ## ##?? " " | | ?????????????##?## # ### #?? | | ?????????????# # # #?# ??? | | ?????????????# ##?# #??? | | ?????????????# ### ##?? | | ?????????????# ### ## #??# #? | +----------------------------------------------------+ Best States ------------- Heat Dissipation 39 Energy Generation 10 Energy Capacity 250 Matter Stores 300 Matter Capacity 300 Sight Range 16 Terrain Scan Density 10 Evasion (%) 55 Item Schematics ----------------- None Robot Schematics ------------------ None Fabricated ------------ Nothing Repaired ---------- Aluminum Leg | 14% | -10/Materials Aluminum Leg | 35% | -10/Materials Studied --------- None Alien Tech Used ----------------- None Achievements -------------- None Challenges ------------ None Game ------ Seed SegregatorSignalLance Manual? 0 Play Time 00:12:29 Cumulative 187.0 hours Start 2025.10.23 @ 21:56:14 End 2025.10.23 @ 22:09:32 Sessions 1 Manual Loads 0 Difficulty Rogue Special Mode None Game No. 161 Rogue 161 Adventurer 0 Explorer 0 Win Type - Total 3 Types 2/0/0/1/0/0/0/0/0/0 Lore% 74 Gallery% 65 Achievement% 38 Wizard Run 0 Options --------- Layout 0 ASCII 0 Keyboard 1 Movement Numpad Keybinds 0 Fullscreen 1 Font 24/Terminus Map View 76x50 Zoom Use 0% Tactical HUD 1 Map Filters NONE Filters NONE Steam 1 RUN: 514e131e-124e-4a8f-968b-1c826680b2e8